[Event "SixDays Budapest March IM 2023"]
[Site "Budapest"]
[Date "2023.03.28"]
[Round "7.3"]
[White "Udvardi, Zalan"]
[Black "To, Nhat Minh"]
[Result "1/2-1/2"]
[ECO "C02"]
[WhiteElo "2260"]
[BlackElo "2342"]
[Annotator "TA"]
[PlyCount "137"]
[EventDate "2023.03.24"]
[EventType "tourn"]
[EventCountry "HUN"]
[SourceTitle "playchess.com"]
[Source "ChessBase"]
[SourceQuality "1"]
[TimeControl "5400+30"]

{[%evp 14,137,0,-14,77,50,63,57,55,50,50,46,52,50,53,41,44,36,100,102,100,105,156,152,154,151,146,140,185,162,165,192,167,129,281,239,232,232,248,246,233,229,463,471,471,467,471,471,456,455,871,289,276,286,319,317,329,329,310,231,231,227,323,257,253,237,229,237,253,216,331,342,342,342,426,426,426,426,426,426,494,494,494,494,494,494,660,660,485,485,554,506,416,16,16,16,16,16,43,43,293,291,307,311,330,331,338,338,6135,338,338,338,345,345,347,16,16,8,8,8,8,8,16,16,16,16]} 1. e4 {[%emt 0:10:11]} e6 {[%emt 0:00:38]} 2. d4 {[%emt 0:00:10]} d5 {[%emt 0:00:03]} 3. e5 {[%emt 0:00:09]} c5 {[%emt 0:00:02]} 4. c3 {[%emt 0:00:07]} Nc6 {[%emt 0:00:03]} 5. Nf3 {[%emt 0:00:08]} Qb6 {[%emt 0:00:02]} 6. Be2 {[%emt 0:00:11]} cxd4 {[%emt 0:00:05]} 7. cxd4 {[%emt 0:00:12]} Nh6 {[%emt 0:00:04]} 8. Bxh6 $1 {[%emt 0:00:12][%mdl 4] Hoping for Bc1. is recently more successful than 8.Nc3.} gxh6 {[%emt 0:00:35] C02: French: Advance Variation.} (8... Qxb2 $1 $11 {keeps the balance.} 9. Bxg7 Bxg7) 9. Qd2 {[%emt 0:00:23]} Bg7 {[%emt 0:04:47]} 10. Nc3 {[%emt 0:01:01]} O-O {[%emt 0:00:33] White is slightly better.} 11. O-O {[%emt 0:04:04]} f6 {[%emt 0:00:37]} 12. exf6 {[%emt 0:00:34]} Rxf6 {[%emt 0:00:06] [#]} 13. Rab1 $146 {[%emt 0:04:09]} ({Predecessor:} 13. Na4 Qc7 14. Rac1 Qf4 15. Qe3 Rf7 16. Rfd1 Rb8 17. Nc5 Qd6 18. b4 a6 19. a3 {0-1 Polivanov,A (2452)-Meier,G (2621) EU-ch Online 2300+ Final 2020 (1)}) 13... Bd7 {[%emt 0:02:54] [#]} 14. b4 $1 {[%emt 0:01:51]} Ne7 {[%emt 0:10:01]} (14... Nxb4 $2 15. Ne5 Be8 16. a3 $18) 15. b5 {[%emt 0:00:37]} Raf8 {[%emt 0:05:40]} ({Black should try} 15... Nf5 $14) 16. Na4 $1 $16 {[%emt 0:01:04]} (16. Ne5 $6 Rxf2 17. Nxd7 (17. Rxf2 Rxf2 18. Nxd7 Qxd4 $11) 17... Qxd4 18. Qxd4 Bxd4 19. Rxf2 (19. Nxf8 Rxe2+ 20. Kh1 Bxc3 $11) 19... Rxf2 $11) 16... Qd6 {[%emt 0:00:17]} 17. Nc5 {[%emt 0:00:49]} b6 {[%emt 0:01:19]} (17... Bc8 $142) 18. Nxd7 {[%emt 0:02:10]} Qxd7 {[%emt 0:00:08]} 19. Ne5 {[%emt 0:02:44]} Qd6 {[%emt 0:00:22]} 20. g3 {[%emt 0:02:19] White is more active.} Ng6 {[%emt 0:00:45]} 21. Qe3 {[%emt 0:04:06]} Rf5 {[%emt 0:02:38][%cal Rg7e5]} 22. f4 {[%emt 0:06:45][%cal Bf2f4,Bf4f5][%mdl 32]} Bxe5 {[%emt 0:11:00]} 23. dxe5 {[%emt 0:00:21][%cal Bd4e5,Be5e6][%mdl 32]} Qd7 {[%emt 0:00:20]} (23... Qe7 $16 24. Rfc1 R5f7) 24. Bg4 {[%emt 0:03:38]} R5f7 {[%emt 0:00:24] [#]} 25. f5 $1 {[%emt 0:06:58][%mdl 576] Discovered Attack} d4 {[%emt 0:00:01]} (25... h5 26. Bh3) 26. Qe2 {[%emt 0:00:27]} (26. Qxh6 exf5 27. e6 (27. Bh5 Rg7 $15) 27... Qxe6 $11) 26... d3 {[%emt 0:00:58]} (26... exf5 $2 27. e6 d3 28. Qe3 $18 (28. exf7+ Rxf7 29. Qe3 fxg4 $18)) 27. Qe3 {[%emt 0:00:12]} exf5 {[%emt 0:04:16]} (27... h5 28. Bh3 (28. fxg6 Rxf1+ 29. Rxf1 Rxf1+ 30. Kxf1 hxg4 $11) 28... d2) 28. e6 $18 {[%emt 0:01:11]} Re7 {[%emt 0:00:05]} 29. exd7 {[%emt 0:00:13]} (29. Bxf5 Qd5 30. Qxd3 (30. Bxd3 Rxe6 31. Rxf8+ Nxf8 $11) 30... Qxd3 31. Bxd3 Rxf1+ 32. Rxf1 Nf8 $16) (29. Rxf5 Qd6 $14) 29... Rxe3 {[%emt 0:00:05]} 30. Bxf5 {[%emt 0:01:04][%cal Of5e6] And now Be6+! would win.} Rd8 {[%emt 0:02:46] [#]} 31. Rbc1 $1 {[%emt 0:02:28] White wants to mate with Rc8.} Kf7 {[%emt 0:00:01]} (31... Ne7 $142 32. Rc8 Nxc8 33. dxc8=Q Rxc8 34. Bxc8 Kg7) 32. Bxd3+ $2 {[%emt 0:00:32]} (32. Rc8 Rxd7 33. Bxd7+ Kg7 34. Bf5) 32... Ke7 {[%emt 0:00:02]} 33. Bf5 {[%emt 0:12:54]} Ne5 {[%emt 0:00:21]} 34. Rc7 {[%emt 0:01:35]} ({Less strong is} 34. Bxh7 Rxd7 35. Rf2 Rd4 $16) 34... Nf3+ {[%emt 0:05:58]} 35. Kg2 {[%emt 0:05:08]} Nd4 {[%emt 0:00:23]} 36. Rxa7 {[%emt 0:00:53]} ({Weaker is} 36. Bxh7 Nxb5 37. Rc6 Re2+ 38. Kh3 Rxd7 $14) 36... Re2+ {[%emt 0:04:37]} 37. Kg1 {[%emt 0:00:54]} Nxb5 {[%emt 0:01:07]} (37... Nxf5 $142 38. Rxf5 Rd2) 38. Rb7 {[%emt 0:01:34]} Nd6 {[%emt 0:01:57]} 39. Rxb6 {[%emt 0:00:17] aiming for Bh3.} Nxf5 {[%emt 0:04:38]} 40. Rxf5 {[%emt 0:00:18]} Rxd7 {[%emt 0:00:09]} 41. Rf2 {[%emt 0:00:31]} Rxf2 {[%emt 0:12:10]} (41... Re6 $142 42. Rb4 Rf6) 42. Kxf2 {[%emt 0:00:11][%mdl 4096] Endgame KR-KR} Rd2+ {[%emt 0:00:03] [#]} 43. Kg1 $1 {[%emt 0:00:07]} Kf7 {[%emt 0:00:15]} 44. Rxh6 {[%emt 0:00:26]} Kg7 {[%emt 0:00:10]} 45. Ra6 {[%emt 0:00:12]} h5 {[%emt 0:03:37]} 46. a4 {[%emt 0:00:29]} Ra2 {[%emt 0:00:50]} 47. a5 {[%emt 0:00:16]} Kh7 {[%emt 0:09:27]} 48. Ra8 {[%emt 0:02:24]} Kg7 {[%emt 0:04:30]} 49. a6 {[%emt 0:00:28]} Kh7 {[%emt 0:00:11]} 50. h3 {[%emt 0:14:37]} Kg7 {[%emt 0:01:01]} 51. Kf1 {[%emt 0:00:37]} Kh7 {[%emt 0:00:32]} 52. Ke1 {[%emt 0:00:14]} Ra3 {[%emt 0:02:48]} 53. a7 $2 {[%emt 0:02:03]} ({White should play} 53. Kf2 $18) 53... Ra2 {[%emt 0:00:56]} 54. Kd1 {[%emt 0:00:05]} Kg7 {[%emt 0:01:56]} 55. Kc1 {[%emt 0:00:08]} Kh7 {[%emt 0:00:12]} 56. Kb1 {[%emt 0:00:22]} Ra6 {[%emt 0:00:13]} (56... Ra4 $1 $14 57. Kb2 Kg7) 57. Kb2 {[%emt 0:00:04]} Kg7 {[%emt 0:00:33]} 58. Kb3 {[%emt 0:00:07]} Ra1 {[%emt 0:00:28]} 59. Kc4 {[%emt 0:00:42]} Ra3 {[%emt 0:00:52]} 60. Kd5 {[%emt 0:00:20]} Ra5+ $2 {[%emt 0:03:03]} (60... Rd3+ 61. Kc5 Ra3) 61. Ke6 $2 {[%emt 0:00:40]} (61. Kc6 {Intending Kb6 and mate.} Ra2 62. Rd8 Rxa7 63. Rd7+ Rxd7 64. Kxd7 Kf6 65. Kd6 Kf5 66. Ke7) 61... Ra6+ {[%emt 0:00:21]} 62. Kf5 {[%emt 0:00:10] Strongly threatening Kg5.} Ra5+ {[%emt 0:02:29]} 63. Kf4 {[%emt 0:00:08]} Ra3 {[%emt 0:00:03]} 64. Rd8 $2 {[%emt 0:03:56]} (64. g4 $18) 64... Rxa7 $11 {[%emt 0:00:15] The position is equal.} 65. Kg5 {[%emt 0:00:04]} Ra5+ {[%emt 0:00:57]} 66. Kh4 $1 {[%emt 0:00:10]} Kh7 {[%emt 0:02:01]} 67. Rd7+ {[%emt 0:00:45]} Kg6 {[%emt 0:00:16]} 68. Rd6+ {[%emt 0:00:33]} Kg7 {[%emt 0:00:09]} 69. g4 {[%emt 0:00:34] Weighted Error Value: White=0.31/Black=0.38} 1/2-1/2

[Event "SixDays Budapest March IM 2023"]
[Site "Budapest"]
[Date "2023.03.28"]
[Round "7.4"]
[White "Ulasevich, Sergei"]
[Black "Balogh, Peter"]
[Result "1-0"]
[ECO "C63"]
[WhiteElo "2236"]
[BlackElo "2264"]
[Annotator "TA"]
[PlyCount "193"]
[EventDate "2023.03.24"]
[EventType "tourn"]
[EventCountry "HUN"]
[SourceTitle "playchess.com"]
[Source "ChessBase"]
[SourceQuality "1"]
[TimeControl "5400+30"]

{[%evp 16,193,52,50,60,75,79,0,0,0,23,29,49,60,69,45,66,77,56,59,87,24,147,143,202,201,204,194,208,175,174,113,221,62,257,267,259,260,263,268,266,236,243,136,147,-19,-19,-23,-24,-21,-27,-16,-17,-21,-23,-48,-19,-73,-66,-78,-11,-20,0,0,0,0,0,-12,-18,-28,-14,-14,0,0,0,0,0,0,0,0,0,-13,0,-20,0,-8,0,-14,-18,-96,0,0,0,0,0,0,0,0,0,0,0,0,0,0,0,0,0,3,694,687,925,680,672,657,657,616,733,681,890,822,881,872,1922,726,1750,1696,12837,12838,12838,12839,12837,12828,12841,12841,12841,12842,12841,779,2079,1829,2105,2050,1786,1689,12839,12839,12841,12841,12841,12841,12841,12831,2322,1987,12843,12842,12842,12843,12843,12843,12844,12844,12845,12845,12845,12846,12848,12848,12850,12847,12848,12847,12849,12848,12849,12847,12848,12848,12850,27999]} 1. e4 {[%emt 0:00:36]} e5 {[%emt 0:01:17]} 2. Nf3 {[%emt 0:00:05]} Nc6 {[%emt 0:00:06]} 3. Bb5 {[%emt 0:01:10]} f5 {[%emt 0:01:20]} 4. d3 {[%emt 0:01:03]} fxe4 {[%emt 0:00:12]} 5. dxe4 {[%emt 0:00:07]} Nf6 {[%emt 0:00:05]} 6. O-O {[%emt 0:00:10]} Bc5 {[%emt 0:00:25]} 7. Bxc6 {[%emt 0:00:36]} bxc6 {[%emt 0:00:09]} 8. Nxe5 {[%emt 0:00:13]} O-O {[%emt 0:00:21]} 9. Nc3 {[%emt 0:00:10]} Ba6 {[%emt 0:04:12] Repels Qd3. C63: Ruy Lopez: Schliemann/Jaenisch Defence.} 10. Nd3 {[%emt 0:00:23]} Bd4 {[%emt 0:02:15]} 11. Ne2 {[%emt 0:30:43]} (11. Re1 $16) 11... Bb6 $11 {[%emt 0:00:11] A strong pair of Bishops. The position is equal.} 12. Ng3 {[%emt 0:00:25]} d5 {[%emt 0:03:13]} 13. exd5 {[%emt 0:02:23]} cxd5 {[%emt 0:01:46]} 14. Be3 $36 {[%emt 0:05:15][%mdl 2048] White is pushing.} c5 {[%emt 0:02:36]} 15. b3 {[%emt 0:06:11]} (15. Bxc5 $6 Bxc5 16. Nxc5 Bxf1 17. Nxf1 Qb6 $15) (15. Re1 $5 {[%cal Rd3c5]}) 15... d4 {[%emt 0:04:04]} 16. Bd2 {[%emt 0:01:39]} Qd5 {[%emt 0:01:44] [#]} 17. Re1 $146 {[%emt 0:03:13]} ({Predecessor:} 17. f4 Rae8 18. Qf3 Qd7 19. h3 Bb7 20. Qf2 Nd5 21. Rfe1 Ne3 22. Bxe3 dxe3 23. Qe2 {½-½ Hoefdraad,G-Garbarino,R Pan American U20-ch 1980 (4)}) 17... Bc7 {[%emt 0:06:00]} 18. Bf4 {[%emt 0:10:04]} (18. Nf4 $16 Bxf4 19. Bxf4) 18... Bb7 {[%emt 0:03:09]} 19. f3 $16 {[%emt 0:00:23]} (19. Bxc7 $2 Qxg2#) 19... Bxf4 {[%emt 0:00:47]} (19... Bb6 $16 {was worth a try.} 20. Re5 Qf7) 20. Nxf4 $18 {[%emt 0:00:05]} Qd6 {[%emt 0:01:48]} 21. Ne6 {[%emt 0:03:45]} Rf7 {[%emt 0:03:40]} 22. Nf5 {[%emt 0:07:05]} Qd5 {[%emt 0:04:24]} 23. Qd3 {[%emt 0:00:15]} (23. Nexg7 $18 Rxg7 24. Nxg7 Kxg7 25. Re7+ Kh8 26. Qd2) 23... Nh5 {[%emt 0:18:15] [#]} (23... Ng4 $16) 24. Nexg7 $2 {[%emt 0:05:58]} Nxg7 $2 {[%emt 0:07:46]} (24... Nf4 $14 25. Qc4 (25. Qb5 Bc6 $11) 25... Rxg7 26. Ne7+ Rxe7 27. Rxe7 Qxc4 28. bxc4 Bc6) 25. Nh6+ {[%emt 0:00:04]} (25. Ne7+ $6 Rxe7 26. Rxe7 Rf8 $18) 25... Kh8 {[%emt 0:00:23] [#]} 26. Re5 $3 {[%emt 0:02:32][%mdl 576] Skewer} Qd7 {[%emt 0:01:21]} 27. Nxf7+ {[%emt 0:00:11]} Qxf7 {[%emt 0:00:07]} 28. Rxc5 {[%emt 0:00:24]} Ne6 {[%emt 0:00:30]} 29. Re5 {[%emt 0:00:34]} ({White should play} 29. Qf5 $18 Rf8 30. Qxf7 Rxf7 31. Re5) 29... Rg8 {[%emt 0:04:13]} 30. Qf5 $2 {[%emt 0:06:07]} ({But not} 30. Rxe6 $6 Qxe6 31. Qxd4+ Rg7 $14) (30. Rae1 $16 Ng5 31. Kf2 (31. Qxd4 {leads to mate.} Nxf3+ 32. Kf2 Nxd4+ {[%mdl 64] Discovered Attack} 33. Ke3 Nxc2+ 34. Kd2 Nxe1 35. Rxe1 Qd5+ 36. Kc1 Qc5+ 37. Kb1 Rxg2 38. Re8+ Kg7 39. h4 Qg1+)) 30... Qg7 $11 {[%emt 0:02:09][%csl Gg8][%cal Rg7g2]} 31. g3 {[%emt 0:03:13]} (31. Rxe6 $2 Qxg2#) 31... Ng5 {[%emt 0:01:47]} 32. Qxg5 {[%emt 0:03:08]} Qxg5 {[%emt 0:00:13]} 33. Rxg5 {[%emt 0:00:04]} Rxg5 {[%emt 0:00:11][%mdl 4096] Endgame KRB-KR} 34. Rd1 {[%emt 0:00:18]} Rd5 {[%emt 0:02:20]} 35. Kf2 {[%emt 0:00:04]} Kg7 {[%emt 0:00:15]} 36. Ke2 {[%emt 0:03:31]} (36. g4 $11) 36... Kf6 $17 {[%emt 0:03:11]} 37. Kd3 {[%emt 0:00:46]} Rh5 {[%emt 0:06:38]} ({Better is} 37... Rd6 $17) 38. Rd2 $11 {[%emt 0:00:15]} Bxf3 {[%emt 0:05:50]} 39. Rf2 $1 {[%emt 0:00:19]} Rf5 {[%emt 0:00:09][%cal Of3e4] ...Be4+! is the strong threat.} 40. Kxd4 {[%emt 0:00:08]} Bb7 {[%emt 0:00:23]} 41. Re2 {[%emt 0:00:48]} Rd5+ {[%emt 0:00:38]} 42. Kc3 {[%emt 0:00:10]} h5 {[%emt 0:00:32]} 43. Re8 {[%emt 0:00:39]} Rd1 {[%emt 0:02:05]} 44. Rh8 {[%emt 0:00:21]} Kg6 {[%emt 0:00:16]} 45. Rg8+ {[%emt 0:00:34]} Kf6 {[%emt 0:01:08]} 46. Rh8 {[%emt 0:00:47]} Kg5 {[%emt 0:03:09]} 47. Rg8+ {[%emt 0:00:43]} Kf6 {[%emt 0:00:09]} 48. a4 {[%emt 0:02:30]} Be4 {[%emt 0:00:33]} 49. Rh8 {[%emt 0:00:14]} Kg5 {[%emt 0:00:31]} (49... Bg6 $5 {[%cal Rd1h1]}) 50. Rg8+ {[%emt 0:00:10]} Kf6 {[%emt 0:00:55]} 51. Rh8 {[%emt 0:00:06]} Bg6 {[%emt 0:00:32]} 52. Kb4 {[%emt 0:00:21] [#]} (52. Rf8+ $11 {remains equal.} Ke5 53. Rg8) 52... Kg7 {[%emt 0:02:09]} (52... Rd2 $1 $17 53. Rf8+ Ke6) 53. Ra8 {[%emt 0:00:10]} Bxc2 {[%emt 0:00:20]} 54. Rxa7+ {[%emt 0:00:02]} Kf6 {[%emt 0:01:01]} 55. Rc7 {[%emt 0:00:11]} Be4 {[%emt 0:00:32] Prevents Rc6+} 56. Rc5 {[%emt 0:01:13]} Rd5 {[%emt 0:01:41]} 57. a5 {[%emt 0:00:18]} Ke6 {[%emt 0:01:14]} 58. a6 {[%emt 0:02:20]} Kd6 {[%emt 0:00:31]} 59. Rc4 {[%emt 0:01:03]} Re5 {[%emt 0:00:56]} 60. a7 {[%emt 0:00:35]} Bb7 {[%emt 0:00:52] Inhibits Rc8.} 61. Rc8 {[%emt 0:00:28][%mdl 64] Deflection, Promotion} Bxc8 $4 {[%emt 0:01:08][%mdl 8192] White now steadily converts the win.} (61... Re2 $11) 62. a8=Q $18 {[%emt 0:00:07] KQ-KRB. White is clearly winning.} (62. a8=B $2 {perishes.} Re2 63. Kc3 Rxh2 $19) 62... Be6 {[%emt 0:00:10]} 63. Qf3 {[%emt 0:01:16]} Rf5 {[%emt 0:00:19]} 64. Qd3+ {[%emt 0:00:14]} Rd5 {[%emt 0:00:13]} 65. Qe3 {[%emt 0:00:12]} Re5 {[%emt 0:00:18]} 66. Qf4 {[%emt 0:00:25] And now Kc3 would win.} Kd5 {[%emt 0:00:30]} 67. Kb5 {[%emt 0:01:13]} Bd7+ {[%emt 0:01:23]} 68. Kb6 {[%emt 0:00:12] Kc7 would be deadly.} Bf5 {[%emt 0:00:29]} 69. Qc4+ {[%emt 0:00:26]} Kd6 {[%emt 0:00:06]} 70. b4 {[%emt 0:00:31]} Bd7 {[%emt 0:00:10]} 71. Qd4+ {[%emt 0:00:30]} Ke6 {[%emt 0:00:09]} 72. Kc7 {[%emt 0:00:13]} Bb5 {[%emt 0:00:17]} 73. Qf4 {[%emt 0:01:32]} Rf5 {[%emt 0:00:24]} 74. Qe4+ {[%emt 0:00:11]} Re5 {[%emt 0:00:49]} 75. Qg6+ {[%emt 0:00:53]} Kd5 {[%emt 0:00:20]} 76. Kb6 {[%emt 0:00:55]} (76. Qf7+ $142 Re6 77. Qxh5+ Re5 78. Qf7+ Re6 79. h4) 76... Be8 {[%emt 0:00:55]} 77. Qd3+ {[%emt 0:00:27]} Ke6 {[%emt 0:00:11]} 78. h3 {[%emt 0:00:28]} Rd5 {[%emt 0:00:19]} 79. Qc4 {[%emt 0:00:31] Black must now prevent Kc7.} Bd7 {[%emt 0:01:00]} 80. Kc7 {[%emt 0:00:52]} Bb5 {[%emt 0:00:12]} 81. Qe4+ {[%emt 0:00:16]} Re5 {[%emt 0:00:12]} 82. Qg6+ {[%emt 0:00:35]} Kd5 {[%emt 0:00:05]} 83. Qd6+ {[%emt 0:00:31]} Ke4 {[%emt 0:00:10]} 84. g4 {[%emt 0:00:41] Strongly threatening Qg6+.} hxg4 {[%emt 0:00:17]} 85. Qg6+ {[%emt 0:00:11]} Kd5 {[%emt 0:00:19]} 86. Qg8+ {[%emt 0:00:16]} Kd4 {[%emt 0:00:22]} 87. hxg4 {[%emt 0:00:27][%cal Bh3g4,Bg4g5,Bg5g6][%mdl 32]} Bc4 {[%emt 0:00:09]} 88. Qg7 {[%emt 0:00:18]} Ke4 {[%emt 0:00:25]} 89. g5 {[%emt 0:00:13]} Re6 {[%emt 0:00:35]} 90. g6 {[%emt 0:00:31]} Kf5 {[%emt 0:00:06]} 91. Qf7+ {[%emt 0:00:06]} Ke5 {[%emt 0:00:05]} 92. Qh7 {[%emt 0:00:34]} Bd3 {[%emt 0:00:42]} 93. Qh2+ {[%emt 0:00:59]} Kf6 {[%emt 0:00:18]} 94. Qh4+ {[%emt 0:00:18]} Ke5 {[%emt 0:00:51]} 95. Qg3+ {[%emt 0:00:16]} Kd4 {[%emt 0:00:08]} 96. g7 {[%emt 0:00:11]} Rg6 {[%emt 0:00:04] [#]} 97. Qxg6 $3 {[%emt 0:00:09][%mdl 576] Promotion. Excellently played by Ulasevich!   Weighted Error Value: White=0.23 (precise) /Black=0.21 (precise)} 1-0

[Event "SixDays Budapest March IM 2023"]
[Site "Budapest"]
[Date "2023.03.28"]
[Round "7.5"]
[White "Gandhi, Anish"]
[Black "Halak, Miklos"]
[Result "1-0"]
[ECO "B15"]
[WhiteElo "2187"]
[BlackElo "2257"]
[Annotator "TA"]
[PlyCount "95"]
[EventDate "2023.03.24"]
[EventType "tourn"]
[EventCountry "HUN"]
[SourceTitle "playchess.com"]
[Source "ChessBase"]
[SourceQuality "1"]
[TimeControl "5400+30"]

{[%evp 16,95,27,18,29,0,40,36,35,14,23,-30,-34,-30,-23,-26,-31,-63,-63,-56,-39,-27,-20,-17,-13,-27,-29,-47,-47,-60,-32,-46,0,-30,0,-30,-36,-33,-38,-45,-25,-32,-31,-33,-20,-32,-34,-28,-14,-42,-27,-64,-8,-111,-27,-148,-87,-120,-91,-253,-97,-100,1033,908,1000,987,988,976,808,835,941,858,1331,1239,4132,4132,2134,1550,890,1400,867,847]} 1. e4 {[%emt 0:00:33]} c6 {[%emt 0:00:34]} 2. d4 {[%emt 0:01:45]} d5 {[%emt 0:00:07]} 3. Nc3 {[%emt 0:00:07]} dxe4 {[%emt 0:00:06]} 4. Nxe4 {[%emt 0:00:05]} Nf6 {[%emt 0:00:05]} 5. Nxf6+ {[%emt 0:00:07]} exf6 {[%emt 0:00:05]} 6. c3 {[%emt 0:00:10]} Bd6 {[%emt 0:00:07]} 7. Bd3 {[%emt 0:00:28]} O-O {[%emt 0:00:09]} 8. Qc2 {[%emt 0:00:45]} Re8+ {[%emt 0:00:07]} 9. Be3 {[%emt 0:00:36]} h5 {[%emt 0:00:35] B15: Caro-Kann: 3 Nc3: 3...g6 and 3...dxe4 4 Nxe4 Nf6 5 Nxf6+ exf6.} 10. O-O-O {[%emt 0:00:24] 10.Nf3 is the fancy move.} Nd7 {[%emt 0:00:24]} 11. Kb1 {[%emt 0:01:31]} Nf8 {[%emt 0:00:36] White is slightly better.} 12. Ne2 {[%emt 0:02:25]} Be6 {[%emt 0:02:21]} 13. Nf4 {[%emt 0:03:55]} (13. c4 $142) 13... Bxf4 $11 {[%emt 0:03:19]} 14. Bxf4 {[%emt 0:00:08]} b5 {[%emt 0:02:03]} 15. f3 {[%emt 0:05:09]} a5 {[%emt 0:07:32][%cal Of8g6] [#]} 16. c4 $146 {[%emt 0:05:36]} ({Predecessor:} 16. h4 Qd5 17. b3 a4 18. b4 Qd7 19. Rdg1 Ng6 20. Bc1 Ne7 21. g4 hxg4 22. fxg4 Bxg4 {0-1 Derakhshani,D (2270)-Oparin,G (2652) Midwest Collegiate Rapid 2020 (2)}) 16... bxc4 {[%emt 0:04:51]} 17. Bxc4 {[%emt 0:00:40]} Bxc4 {[%emt 0:00:19]} 18. Qxc4 {[%emt 0:00:06]} Qd5 {[%emt 0:00:42]} 19. Qxd5 {[%emt 0:03:09]} cxd5 {[%emt 0:00:07]} 20. Rhe1 {[%emt 0:00:50]} Ne6 {[%emt 0:00:41]} 21. Bd2 {[%emt 0:03:17]} a4 {[%emt 0:03:45]} 22. Bb4 {[%emt 0:01:21]} Rec8 {[%emt 0:01:20]} 23. Re3 {[%emt 0:04:51]} Rc4 {[%emt 0:01:36]} (23... g6 $15 {was preferrable.}) 24. a3 {[%emt 0:00:45]} Nxd4 {[%emt 0:06:50]} 25. Red3 {[%emt 0:02:30]} Nc6 {[%emt 0:00:43]} 26. Bc3 {[%emt 0:12:58]} Rb8 {[%emt 0:01:30]} 27. Ka2 {[%emt 0:01:22] [#]} d4 $1 {[%emt 0:01:13]} 28. Bxd4 {[%emt 0:00:35]} Rc2 {[%emt 0:00:10]} 29. Bc3 {[%emt 0:01:20]} Rxg2 {[%emt 0:00:24]} 30. R1d2 {[%emt 0:00:23]} Rxd2 {[%emt 0:01:53]} 31. Rxd2 $15 {[%emt 0:00:04][%mdl 4096] Endgame KRB-KRN} Rb5 {[%emt 0:00:23]} 32. Rd7 {[%emt 0:01:32]} Rf5 {[%emt 0:05:24]} 33. Rc7 {[%emt 0:00:47]} Ne5 {[%emt 0:04:35]} ({Black should play} 33... Rc5 $1 $15 34. Kb1 Kh7) 34. Ra7 {[%emt 0:00:56]} (34. b3 $1 $11 {remains equal.}) 34... Rf4 {[%emt 0:06:03]} (34... Nxf3 $17 {Strongly threatening ...g5.} 35. Rxa4 Nxh2) 35. Bb4 {[%emt 0:01:28]} (35. b4 $1 $11 {was the only way to keep the balance.} axb3+ 36. Kxb3) 35... Nxf3 {[%emt 0:02:26]} (35... Rxf3 $142 {Threatens to win with ...Rh3.} 36. Rxa4 Rh3 37. Ra8+ Kh7) 36. Rxa4 $17 {[%emt 0:01:07]} Nxh2 {[%emt 0:01:13] ...Nf3 is the strong threat.} 37. Ra8+ {[%emt 0:01:40]} Kh7 {[%emt 0:01:02] Hoping for ...Nf3.} 38. Bd6 {[%emt 0:00:05] [#]} g5 {[%emt 0:00:57][%mdl 8192]} 39. Bxf4 $18 {[%emt 0:06:03] White is clearly winning.} gxf4 {[%emt 0:00:05] KR-KN} 40. Rc8 {[%emt 0:01:12]} f3 {[%emt 0:00:47]} 41. Rc2 {[%emt 0:00:56]} Ng4 {[%emt 0:00:17]} 42. a4 {[%emt 0:00:19]} f2 {[%emt 0:01:24]} 43. Rc1 {[%emt 0:00:07]} Ne3 {[%emt 0:08:00]} 44. a5 {[%emt 0:00:58]} f5 {[%emt 0:01:49]} 45. a6 {[%emt 0:01:46]} Nc2 {[%emt 0:00:08]} 46. a7 {[%emt 0:01:50]} (46. Rxc2 f1=Q 47. Rc6 Qb5 $19) 46... Ne1 {[%emt 0:00:05]} 47. a8=Q {[%emt 0:00:10] White wants to mate with Qf8.} (47. a8=R $2 {is the wrong capture.} f1=Q 48. Rcc8 Qb5 $19) 47... f1=Q {[%emt 0:00:08]} 48. Qa5 {[%emt 0:01:42] Weighted Error Value: White=0.21 (precise) /Black=0.20 (precise)} 1-0